bitfinex-derivatives/quotes_SOLF0:USTF0_20250127
["timestamp","ask_amount","ask_price","bid_price","bid_amount"]
[1737997287935,0.03069043,229.52,229.48,0.02939728]
[1737997288739,0.03069043,229.52,229.48,9.728e-05]
[1737997290136,4.359,229.49,229.48,9.728e-05]
[1737997290931,0.03069043,229.52,229.48,9.728e-05]
[1737997292537,4.3587,229.51,229.48,9.728e-05]
[1737997292731,0.03069043,229.52,229.48,9.728e-05]
[1737997293141,0.03069043,229.52,229.49,4.3588]
[1737997293344,0.03069043,229.52,229.48,9.728e-05]
[1737997293938,0.03069043,229.52,229.48,4.35919728]
[1737997294239,0.03069043,229.52,229.48,9.728e-05]
[1737997295543,0.03069043,229.52,229.48,26.03800994]
[1737997295743,1.3494,229.62,229.48,26.03800994]
[1737997295944,4.3581,229.54,229.49,4.359]
[1737997296841,4.3581,229.54,229.49,4.38652985]
[1737997297042,4.38903227,229.54,229.49,4.38652985]
[1737997297442,4.3583,229.53,229.49,0.02752985]
[1737997297642,0.03093227,229.54,229.52,26.03791266]
[1737997298547,0.03093227,229.54,229.5,4.3587]
[1737997298741,0.03093227,229.54,229.49,1.41842985]
[1737997299446,4.3553,229.69,229.58,4.3572]
[1737997299647,28.79381266,229.75,229.58,4.3572]
[1737997299843,28.79381266,229.75,229.53,26.03791266]
[1737997300746,0.02916265,229.66,229.62,0.03220911]
[1737997300946,28.79381266,229.75,229.62,0.03220911]
[1737997301248,0.02918274,229.66,229.62,0.03220911]
[1737997301545,0.03025446,229.66,229.62,0.03220911]
[1737997302147,0.03025446,229.66,229.62,26.07012177]
[1737997302647,0.03025446,229.66,229.62,30.42652177]
[1737997302842,0.03025446,229.66,229.62,0.03220911]
[1737997303244,4.3564,229.63,229.62,0.03220911]
[1737997303746,0.03025446,229.66,229.62,0.03220911]
[1737997304446,26.03791266,229.83,229.62,26.07012177]
[1737997304651,26.03791266,229.83,229.62,26.03791266]
[1737997304850,4.3549,229.71,229.62,30.39441266]
[1737997305144,26.03791266,229.79,229.58,26.03791266]
[1737997305351,29.67791266,229.79,229.58,26.03791266]
[1737997305646,4.3555,229.68,229.66,0.03238453]
[1737997305948,0.0317713,229.71,229.66,0.03238453]
[1737997306653,4.3551,229.7,229.66,0.03238453]
[1737997306854,0.0317713,229.71,229.66,0.03238453]
[1737997308153,4.3556,229.67,229.66,8.453e-05]
[1737997313363,0.0317713,229.71,229.66,8.453e-05]
[1737997313752,0.0317713,229.71,229.66,4.35568453]
[1737997314459,0.0317713,229.71,229.66,8.453e-05]
[1737997315056,4.3554,229.69,229.66,8.453e-05]
[1737997315253,0.0317713,229.71,229.66,8.453e-05]
[1737997316959,4.3556,229.67,229.66,8.453e-05]
[1737997317861,30.38312252,229.67,229.66,8.453e-05]
[1737997318060,4.3589,229.5,229.45,26.02752252]
[1737997318260,26.02752252,229.63,229.41,26.02752252]
[1737997318561,1.3454,229.62,229.41,26.02752252]
[1737997318860,4.3589,229.5,229.41,26.02752252]
[1737997319164,4.3584,229.53,229.43,4.3601]
[1737997319360,0.03119605,229.48,229.43,4.39281352]
[1737997319553,0.03119605,229.48,229.43,0.03271352]
[1737997319758,0.03119605,229.48,229.45,26.02752252]
[1737997320459,0.03119605,229.48,229.43,0.03271352]
[1737997320660,4.39049605,229.48,229.43,0.03271352]
[1737997321255,0.03119605,229.48,229.43,0.03271352]
[1737997321457,0.03119605,229.48,229.45,26.02752252]
[1737997321657,1.4259,229.58,229.45,26.02752252]
[1737997321858,1.4259,229.58,229.5,26.02752252]
[1737997322161,1.4259,229.58,229.46,26.02752252]
[1737997322561,1.3454,229.62,229.5,26.02752252]
[1737997322862,1.4056,229.66,229.54,26.02752252]
[1737997323258,1.3162,229.71,229.51,0.0545]
[1737997323259,4.3573,229.58,229.51,0.0545]
[1737997323457,0.03116526,229.62,229.51,0.0545]
[1737997323764,0.0325436,229.59,229.58,30.41642794]
[1737997323965,1.4056,229.7,229.58,26.05912794]
[1737997324160,1.4056,229.7,229.63,26.02752252]
[1737997324361,1.4056,229.7,229.58,26.05912794]
[1737997324566,1.4056,229.7,229.58,26.02752252]
[1737997324865,4.3557,229.67,229.58,26.02752252]
[1737997325066,0.0303785,229.66,229.62,0.03243849]
[1737997325562,4.3564,229.63,229.62,0.03243849]
[1737997325758,4.3564,229.63,229.62,3.849e-05]
[1737997326660,0.0303785,229.66,229.62,3.849e-05]
[1737997326863,0.0303785,229.66,229.62,26.02756101]
[1737997328162,0.0303785,229.66,229.62,30.38406101]
[1737997328364,0.0303785,229.66,229.62,26.02756101]
[1737997328563,2.7951,229.79,229.62,26.02756101]
[1737997328768,2.7951,229.79,229.67,26.02752252]
[1737997329467,2.7951,229.79,229.63,26.02752252]
[1737997329468,4.3554,229.68,229.63,26.02752252]
[1737997329669,0.02964924,229.75,229.71,0.03145044]
[1737997329869,2.7951,229.79,229.63,26.02752252]
[1737997330167,2.7951,229.79,229.71,0.02802254]
[1737997330168,0.03078269,229.75,229.71,0.02802254]
[1737997331167,0.03078269,229.75,229.71,26.05554506]
[1737997331366,2.726,229.89,229.76,4.3538]
[1737997331669,2.726,229.89,229.78,26.02752252]
[1737997332166,28.75352252,229.89,229.68,26.02752252]
[1737997332464,26.02752252,229.85,229.68,30.38292252]
[1737997332667,4.3537,229.77,229.76,0.0295722]
[1737997333267,26.02752252,229.85,229.64,26.02752252]
[1737997333572,1.3556,229.76,229.64,26.02752252]
[1737997333769,1.3556,229.76,229.68,26.02752252]
[1737997334465,0.03118951,229.74,229.7,0.029839]
[1737997334672,4.3548,229.71,229.7,0.029839]
[1737997335466,4.3562,229.64,229.46,26.02752252]
[1737997335669,1.3387,229.73,229.52,1.3785]
[1737997336567,1.3556,229.76,229.62,26.02752252]
[1737997336762,1.3556,229.76,229.63,4.38621634]
[1737997336763,0.02758488,229.68,229.63,4.38621634]
[1737997337066,0.02758488,229.68,229.63,0.02991634]
[1737997337263,4.3558,229.66,229.63,0.02991634]
[1737997337571,0.02758488,229.68,229.63,0.02991634]
[1737997338469,4.38318488,229.68,229.63,0.02991634]
[1737997338669,0.02758488,229.68,229.63,0.02991634]
[1737997339172,4.3562,229.64,229.63,0.02991634]
[1737997339471,0.02758488,229.68,229.63,0.02991634]
[1737997340764,4.3563,229.64,229.52,26.02752252]
[1737997340974,2.7958,229.67,229.48,26.02752252]
[1737997342075,4.3577,229.56,229.55,0.02864663]
[1737997342276,0.03053468,229.6,229.55,0.02864663]
[1737997342675,4.3575,229.57,229.55,0.02864663]
[1737997343272,4.3577,229.56,229.55,0.02864663]
[1737997343777,0.03053468,229.6,229.46,26.02752252]
[1737997344167,26.02752252,229.66,229.46,26.02752252]
[1737997344368,2.7958,229.67,229.46,26.02752252]
[1737997344573,2.7958,229.67,229.51,26.02752252]
[1737997344976,0.03172467,229.59,229.56,4.3577]
[1737997345175,0.03172467,229.59,229.55,26.02752252]
[1737997345373,2.7958,229.67,229.55,26.02752252]
[1737997345676,0.0320618,229.59,229.58,4.3573]
[1737997345877,2.7958,229.67,229.55,26.02752252]
[1737997346372,0.0310017,229.61,229.58,4.3573]
[1737997346573,0.0310017,229.61,229.59,26.02752252]
[1737997346877,0.03006213,229.62,229.61,4.3567]
[1737997347174,4.3555,229.68,229.61,4.3567]
[1737997347375,0.03092102,229.64,229.61,4.3567]
[1737997347577,1.3156,229.78,229.63,26.02752252]
[1737997347780,1.3156,229.78,229.71,26.02752252]
[1737997348774,0.03009634,229.77,229.72,0.02938941]
[1737997349171,0.01009634,229.77,229.76,26.02752252]
[1737997349372,1.3794,229.87,229.76,26.02752252]
[1737997350373,3.20216003,229.93,229.8,26.02752252]
[1737997350571,0.03072436,229.84,229.8,26.02752252]
[1737997350775,3.20216003,229.93,229.8,26.02752252]
[1737997350976,3.20216003,229.93,229.84,26.02752252]
[1737997351176,0.02850369,229.89,229.84,26.02752252]
[1737997351571,0.02850369,229.89,229.84,26.05683091]
[1737997352981,4.3516,229.88,229.84,26.05683091]
[1737997353281,0.02850369,229.89,229.84,26.05683091]
[1737997353678,26.02752252,230.05,229.84,26.05683091]
[1737997353877,4.1087,230.13,229.92,26.02752252]
[1737997354076,4.1087,230.13,229.94,4.3504]
[1737997354284,4.1087,230.13,229.96,26.02752252]
[1737997354479,4.1087,230.13,229.92,26.02752252]
[1737997355080,0.03007043,230.05,230.0,0.03085063]
[1737997355682,4.3492,230.01,230.0,0.03085063]
[1737997355987,0.03007043,230.05,230.0,0.03085063]
[1737997356283,4.349,230.02,230.0,0.03085063]
[1737997358484,0.03007043,230.05,229.88,26.02752252]
[1737997358677,1.3067,230.01,229.88,26.02752252]
[1737997359081,1.3067,230.01,229.8,1.4016]
[1737997359082,1.3067,230.01,229.92,26.02752252]
[1737997359277,2.6908,230.13,229.92,26.02752252]
[1737997359481,4.3486,230.04,229.92,26.02752252]
[1737997359679,0.02874368,230.05,230.0,0.0281166]
[1737997359885,1.3067,230.09,230.0,0.0281166]
[1737997360086,4.3488,230.03,230.0,0.0281166]
[1737997360481,0.03266998,230.05,230.0,0.0281166]
[1737997361282,4.3486,230.04,230.0,0.0281166]
[1737997361586,0.03266998,230.05,230.0,0.0281166]
[1737997361787,4.3488,230.03,230.0,0.0281166]
[1737997362287,4.349,230.02,230.0,0.0281166]
[1737997362489,0.03266998,230.05,230.0,0.0281166]
[1737997362987,4.349,230.03,230.0,0.0281166]
[1737997363391,0.03266998,230.05,230.0,0.0281166]
[1737997363986,4.3492,230.01,230.0,0.0281166]
[1737997366094,0.03266998,230.05,230.0,0.0281166]
[1737997366494,4.3492,230.01,230.0,0.0281166]
[1737997367391,0.03266998,230.05,230.0,0.0281166]
[1737997367787,4.3492,230.01,230.0,0.0281166]
[1737997367992,0.03266998,230.05,229.9,26.02752252]
[1737997368393,4.3487,230.04,229.9,30.37872252]
[1737997368599,1.3067,230.09,229.9,30.37872252]
[1737997369098,0.03062086,230.02,229.97,0.02836876]
[1737997369694,4.3498,229.98,229.97,0.02836876]
[1737997370989,2.7943,230.01,229.87,15.98069105]
[1737997372198,0.02917244,229.96,229.92,0.03275672]
[1737997373491,4.3507,229.93,229.92,0.03275672]
[1737997373697,0.02917244,229.96,229.79,15.98069105]
[1737997373896,4.3505,229.95,229.86,4.3519]
[1737997374100,2.7943,230.01,229.86,4.3519]
[1737997374294,2.7943,230.01,229.83,15.98069105]
[1737997374497,4.3502,229.96,229.83,15.98069105]
[1737997374803,0.03291061,229.92,229.87,0.03254729]
[1737997375299,0.03291061,229.92,229.87,0.03254942]
[1737997375897,0.03291061,229.92,229.87,16.01324047]
[1737997376203,7.1436,230.01,229.91,15.98069105]
[1737997376502,2.7943,230.01,229.91,15.98069105]
[1737997376704,1.3486,230.03,229.91,15.98069105]
[1737997377001,24.67449105,230.13,229.91,15.98069105]
[1737997377193,2.7459,230.09,229.95,15.98069105]
[1737997377395,1.4293,230.09,230.02,4.3489]
[1737997377601,3.55e-05,230.04,230.01,15.98069105]
[1737997377901,1.3166,230.17,230.01,15.98069105]
[1737997378700,4.3467,230.14,230.05,15.98069105]
[1737997378905,0.03156976,230.11,230.07,0.03139158]
[1737997379306,1.4293,230.2,230.09,15.98069105]
[1737997379704,4.3464,230.16,230.09,15.98069105]
[1737997380304,4.3474,230.11,230.05,15.98069105]
[1737997380607,15.98069105,230.19,230.1,7.385e-05]
[1737997380814,4.3473,230.11,230.1,7.385e-05]
[1737997381008,19.60069105,230.14,229.91,15.98069105]
[1737997381204,15.98069105,230.09,229.87,15.98069105]
[1737997381404,1.3778,230.08,229.87,15.98069105]
[1737997381809,4.3495,229.99,229.95,0.0318367]
[1737997382111,0.03117681,230.0,229.95,0.0318367]
[1737997382312,4.3496,229.99,229.95,0.0318367]
[1737997382513,0.03117681,230.0,229.95,0.0318367]
[1737997383306,4.3496,229.99,229.95,0.0318367]
[1737997383515,0.03117681,230.0,229.95,0.0318367]
[1737997383912,4.35,229.97,229.95,0.0318367]
[1737997384113,2.7082,229.99,229.82,15.98069105]
[1737997384410,2.7082,229.99,229.86,15.98069105]
[1737997384615,13.13,230.17,229.91,15.98069105]
[1737997384616,15.98069105,230.08,229.91,15.98069105]
[1737997384806,1.3215,230.07,229.91,15.98069105]
[1737997385206,0.03066563,230.01,229.97,0.03280222]
[1737997386613,1.3483,230.12,229.99,15.98069105]
[1737997386813,4.3466,230.15,230.03,15.98069105]
[1737997387015,1.3039,230.19,230.01,15.98069105]
[1737997387316,1.3039,230.19,230.07,15.98069105]
[1737997387720,1.3483,230.24,230.11,15.98069105]
[1737997388015,1.3039,230.3,230.15,15.98069105]
[1737997388219,7.66563628,230.26,230.16,4.3463]
[1737997388514,7.66563628,230.26,230.12,1.4453]
[1737997388515,3.32103628,230.26,230.17,28.2549359]
[1737997389214,0.03181731,230.24,230.21,28.2549359]
[1737997389520,1.4135,230.37,230.21,28.2549359]
[1737997389712,0.02870536,230.25,230.21,28.2549359]
[1737997389916,4.3439,230.29,230.21,28.2549359]
[1737997390115,0.02899026,230.25,230.21,28.28684101]
[1737997390316,28.2549359,230.38,230.21,0.03190511]
[1737997390618,28.2549359,230.34,230.13,28.3425359]
[1737997390814,28.2549359,230.3,230.12,1.4453]
[1737997391019,4.1167,230.29,230.12,1.4453]
[1737997391517,0.03094119,230.23,230.18,0.02826622]
[1737997392121,4.3455,230.21,230.18,0.02826622]
[1737997392326,0.03094119,230.23,230.18,0.02826622]
[1737997392824,4.3455,230.21,230.18,0.02826622]
[1737997393023,0.03094119,230.23,230.09,28.2549359]
[1737997393224,2.8435,230.28,229.92,28.2549359]
[1737997393225,28.2549359,230.26,230.05,28.2549359]
[1737997393725,4.3466,230.15,230.05,28.2549359]
[1737997393926,28.2549359,230.26,230.05,28.2549359]
[1737997394318,4.3462,230.17,230.13,0.02804972]
[1737997394627,0.0292248,230.18,230.13,0.02804972]
[1737997395122,28.2841607,230.18,230.13,0.02804972]
[1737997395320,4.3473,230.11,230.01,32.6040359]
[1737997395823,1.3673,230.17,230.02,4.3489]
[1737997395824,4.3472,230.12,230.02,4.3489]
[1737997396024,28.2549359,230.22,230.01,28.2549359]
[1737997396223,28.2549359,230.18,229.97,28.2549359]
[1737997396420,4.347,230.13,229.94,5.7435]
[1737997396623,1.3381,230.12,229.94,5.7435]
[1737997396827,1.3381,230.12,229.94,1.3932]
[1737997397021,4.3484,230.05,229.96,4.35]
[1737997397222,1.3381,230.12,229.94,1.3932]
[1737997397425,28.2549359,230.1,229.89,28.2549359]
[1737997397621,4.3496,229.99,229.9,4.3511]
[1737997397820,4.3496,229.99,229.89,28.2549359]
[1737997397821,0.03246213,230.05,229.97,0.03111486]
[1737997398019,0.03135836,230.03,229.89,28.2549359]
[1737997398223,1.3218,230.09,229.99,0.0326229]
[1737997398427,0.02950335,229.98,229.93,28.2549359]
[1737997398627,1.3218,230.09,229.93,28.2549359]
[1737997398826,0.02742322,229.98,229.97,4.3499]
[1737997399026,1.3474,230.11,229.97,28.2549359]
[1737997399328,4.3462,230.17,230.05,4.3483]
[1737997399725,1.3474,230.21,230.01,28.2549359]
[1737997399926,4.3458,230.19,230.05,28.2549359]
[1737997400231,0.03024733,230.13,230.09,0.02779996]
[1737997400527,0.03024733,230.13,230.09,4.37539996]
[1737997400729,0.03024733,230.13,230.09,28.28273586]
[1737997400928,1.3474,230.21,230.09,28.28273586]
[1737997401427,2.6241,230.25,230.09,28.28273586]
[1737997401622,13.0167,230.56,230.04,28.2549359]
[1737997401623,1.3066,230.33,230.13,28.2549359]
[1737997401828,1.3066,230.33,230.17,28.2549359]
[1737997402025,1.3066,230.33,230.04,28.2549359]
[1737997402026,1.3066,230.33,230.21,28.2549359]
[1737997402227,0.03128236,230.27,230.23,0.03156391]
[1737997402426,0.03128236,230.27,230.17,28.2549359]
[1737997402629,1.3066,230.33,230.13,28.2549359]
[1737997402830,0.02896403,230.27,230.23,0.03115192]
[1737997403031,0.02896403,230.27,230.13,28.2549359]
[1737997403231,0.02896403,230.27,230.23,0.03204288]
[1737997403528,4.3438,230.3,230.19,4.3457]
[1737997403827,1.3066,230.33,230.23,0.0300442]
[1737997404026,0.03149229,230.27,230.23,0.0300442]
[1737997409437,4.3445,230.26,230.23,0.0300442]
[1737997409635,0.03149229,230.27,230.23,0.0300442]
[1737997412840,4.37579229,230.27,230.23,0.0300442]
[1737997413140,0.03149229,230.27,230.23,0.0300442]
[1737997413333,0.03149229,230.27,230.25,28.2549359]
[1737997413537,28.2549359,230.44,230.25,28.2549359]
[1737997413538,32.3492359,230.44,230.25,28.2549359]
[1737997413941,4.343,230.34,230.26,4.3443]
[1737997414242,32.3492359,230.44,230.25,28.2549359]
[1737997414439,4.0943,230.44,230.25,28.2549359]
[1737997414637,0.02986853,230.37,230.32,0.03277328]
[1737997416544,0.02986853,230.37,230.34,4.3428]
[1737997416844,0.02986853,230.37,230.32,0.03277328]
[1737997417243,4.37226853,230.37,230.32,0.03277328]
[1737997417639,0.02986853,230.37,230.32,0.03277328]
[1737997418947,4.3431,230.33,230.32,0.03277328]
[1737997420249,4.3429,230.35,230.32,0.03277328]
[1737997420747,0.02986853,230.37,230.32,0.03277328]
[1737997420947,4.343,230.34,230.32,0.03277328]
[1737997421145,0.02986853,230.37,230.32,0.03277328]
[1737997421549,4.3431,230.33,230.32,0.03277328]
[1737997427849,0.02986853,230.37,230.32,0.03277328]
[1737997427850,4.3428,230.35,230.32,0.03277328]
[1737997428151,0.02986853,230.37,230.32,0.03277328]
[1737997429045,4.37236853,230.37,230.32,0.03277328]
[1737997429251,0.02986853,230.37,230.32,0.03277328]
[1737997429647,4.3431,230.33,230.32,0.03277328]
[1737997431143,0.02986853,230.37,230.32,0.03277328]
[1737997431353,4.3429,230.34,230.32,0.03277328]
[1737997431553,0.02986853,230.37,230.32,0.03277328]
[1737997431752,4.3429,230.35,230.32,0.03277328]
[1737997432055,0.02986853,230.37,230.32,0.03277328]
[1737997433649,4.3426,230.36,230.32,0.03277328]
[1737997433851,0.02986853,230.37,230.32,0.03277328]
[1737997434149,0.02986853,230.37,230.32,4.37587328]
[1737997434352,0.02986853,230.37,230.32,0.03277328]
[1737997434754,17.37729363,230.59,230.34,17.37729363]
[1737997434955,17.37729363,230.59,230.39,17.37729363]
[1737997435261,4.3417,230.41,230.35,17.37729363]
[1737997435747,1.4131,230.54,230.35,17.37729363]
[1737997435953,1.4131,230.54,230.36,4.37212266]
[1737997436153,1.4131,230.54,230.35,17.37729363]
[1737997436351,1.4131,230.54,230.43,0.02919571]
[1737997436556,4.341,230.44,230.43,0.02919571]
[1737997436957,1.4131,230.54,230.43,0.02919571]
[1737997438358,4.3401,230.5,230.43,0.02919571]
[1737997439058,4.3401,230.5,230.43,4.37029571]
[1737997440155,4.3401,230.5,230.44,4.341]
[1737997440353,1.4131,230.54,230.43,0.02919571]
[1737997441459,1.3818,230.6,230.44,17.37729363]
[1737997441961,1.3818,230.6,230.52,4.3395]
[1737997442163,1.3818,230.6,230.5,0.03081176]
[1737997443462,1.3818,230.6,230.52,17.37729363]
[1737997443857,1.3052,230.62,230.52,17.37729363]
[1737997444161,1.3052,230.62,230.55,4.339]
[1737997444363,1.3052,230.62,230.55,0.03330194]
[1737997446566,1.3128,230.67,230.55,0.03330194]
[1737997446567,17.37729363,230.67,230.55,0.03330194]
[1737997446766,1.3921,230.61,230.44,17.37729363]
[1737997447168,4.3388,230.56,230.48,4.3403]
[1737997447368,1.3921,230.61,230.44,17.37729363]
[1737997447863,0.03249409,230.55,230.36,17.37729363]
[1737997448064,0.03249409,230.55,230.4,17.37729363]
[1737997448365,1.3921,230.61,230.36,17.37729363]
[1737997448563,1.3921,230.61,230.4,17.37729363]
[1737997449370,0.02824972,230.53,230.48,0.02755441]
[1737997449864,0.02824972,230.53,230.36,17.37729363]
[1737997450266,0.79105127,230.6,230.36,17.37729363]
[1737997450567,4.3407,230.46,230.38,4.3421]
[1737997450870,17.37729363,230.55,230.38,4.3421]
[1737997451167,0.03103143,230.44,230.4,0.03111394]
[1737997451369,17.37729363,230.55,230.38,4.3421]
[1737997451568,0.02778074,230.44,230.37,4.3423]
[1737997451864,1.3827,230.54,230.39,0.03204387]
[1737997452069,1.3827,230.54,230.37,17.37729363]
[1737997452569,0.02810642,230.49,230.44,0.03030774]
[1737997453164,4.36820642,230.49,230.44,0.03030774]
[1737997453360,0.02810642,230.49,230.44,0.03030774]
[1737997453671,1.3107,230.48,230.3,17.37729363]
[1737997453967,4.3413,230.43,230.35,4.3426]
[1737997454365,1.3107,230.48,230.3,17.37729363]
[1737997454560,17.37729363,230.46,230.26,17.37729363]
[1737997454763,0.02983217,230.41,230.37,0.03308707]
[1737997455769,0.02983217,230.41,230.26,17.37729363]
[1737997456170,1.3107,230.48,230.34,17.37729363]
[1737997456570,4.341,230.45,230.38,4.3421]
[1737997456971,0.0311426,230.44,230.39,0.02988671]
[1737997457975,4.3722426,230.44,230.39,0.02988671]
[1737997458176,0.0311426,230.44,230.39,0.02988671]
[1737997459378,0.0311426,230.44,230.4,4.3417]
[1737997459676,0.0311426,230.44,230.39,0.02988671]
[1737997460376,0.0311426,230.44,230.42,4.3414]
[1737997460577,0.0311426,230.44,230.39,0.02988671]
[1737997461679,4.3723426,230.44,230.4,4.3418]
[1737997462577,4.3723426,230.44,230.39,0.02988671]
[1737997462772,0.0311426,230.44,230.39,0.02988671]
[1737997463679,4.3722426,230.44,230.39,4.37188671]
[1737997463877,0.0311426,230.44,230.39,0.02988671]
[1737997464379,0.0311426,230.44,230.41,4.3414]
[1737997464580,0.0311426,230.44,230.39,0.02988671]
[1737997464982,4.3413,230.43,230.39,0.02988671]
[1737997466883,4.3413,230.43,230.39,4.37178671]
[1737997467286,4.3413,230.43,230.39,0.02988671]
[1737997468684,4.3722426,230.44,230.39,0.02988671]
[1737997468890,0.0311426,230.44,230.39,0.02988671]
[1737997469184,4.3418,230.4,230.39,0.02988671]
[1737997469889,4.3428,230.35,230.26,17.37729363]
[1737997470085,1.363,230.43,230.28,4.3439]
[1737997470287,1.363,230.43,230.22,91.87729363]
[1737997470886,17.37729363,230.42,230.22,91.87729363]
[1737997471084,0.03344637,230.35,230.3,0.03007177]
[1737997471286,0.03344637,230.35,230.16,17.37729363]
[1737997471791,2.8035,230.37,230.16,17.37729363]
[1737997472487,0.02812676,230.29,230.24,0.03143182]
[1737997472692,0.02812676,230.29,230.25,4.3445]
[1737997472888,0.02812676,230.29,230.24,0.03143182]
[1737997473988,17.37729363,230.27,230.08,17.37729363]
[1737997474192,2.6454,230.26,230.04,17.37729363]
[1737997474389,4.3463,230.17,230.04,17.37729363]
[1737997475291,0.02894671,230.13,230.08,0.03172852]
[1737997475590,2.6454,230.26,230.04,17.37729363]
[1737997475786,0.03268353,230.13,230.08,0.0305647]
[1737997475990,2.6454,230.26,230.13,4.3468]
[1737997476291,0.0289764,230.13,230.04,17.37729363]
[1737997476492,4.3459,230.18,230.17,0.0280333]
[1737997476786,0.03237621,230.11,230.09,4.3476]
[1737997476991,17.37729363,230.23,230.09,4.3476]
[1737997477393,2.6454,230.26,230.04,17.37729363]
[1737997477594,2.6454,230.26,230.08,17.37729363]
[1737997477794,0.02842699,230.17,230.13,0.02978945]
[1737997478095,2.6454,230.26,230.13,0.02978945]
[1737997478293,0.03255033,230.17,230.13,0.02978945]
[1737997478486,2.6454,230.26,230.13,0.02978945]
[1737997478687,0.02898777,230.22,230.13,0.02978945]
[1737997480900,17.37729363,230.19,229.96,17.37729363]
[1737997481195,17.37729363,230.15,230.01,4.3491]
[1737997481492,4.3475,230.11,229.96,17.37729363]
[1737997481696,2.6808,230.14,229.96,17.37729363]
[1737997481896,2.6808,230.14,230.0,17.37729363]
[1737997482098,0.02948497,230.06,230.01,0.02772678]
[1737997482499,0.02948497,230.06,230.05,4.3484]
[1737997483001,8.497e-05,230.06,230.05,4.3484]
[1737997483701,2.7098,230.22,230.15,4.3464]
[1737997483891,2.7098,230.22,230.08,17.37729363]
[1737997484096,4.3457,230.2,230.08,17.37729363]
[1737997484292,2.7098,230.22,230.12,4.347]
[1737997484492,2.7098,230.22,230.04,17.37729363]
[1737997484692,17.37729363,230.19,230.0,17.37729363]
[1737997484902,17.40581121,230.15,230.11,7.793e-05]
[1737997485299,17.40581121,230.15,229.96,17.37729363]
[1737997485300,17.37729363,230.15,229.96,17.37729363]
[1737997485501,17.37729363,230.15,230.0,4.3493]
[1737997485802,4.3482,230.07,230.0,4.3493]
[1737997485995,4.3482,230.07,230.01,4.349]
[1737997486194,4.3482,230.07,230.05,0.03334564]
[1737997486393,4.3482,230.07,230.01,4.349]
[1737997486697,0.03344709,230.1,230.09,4.3476]
[1737997487001,1.396,230.21,230.04,17.37729363]
[1737997487198,0.02764099,230.12,230.09,4.3476]
[1737997487504,1.396,230.21,230.04,17.37729363]
[1737997487703,0.02991397,230.13,230.12,4.3471]
[1737997488102,4.3459,230.19,230.12,4.3471]
[1737997488302,0.0296249,230.15,230.1,0.03055728]
[1737997489005,0.0296249,230.15,230.12,4.3469]
[1737997489196,0.0296249,230.15,230.1,0.03055728]
[1737997489402,0.0296249,230.15,230.14,4.3467]
[1737997490004,1.3235,230.28,230.12,17.37729363]
[1737997491205,0.02895905,230.22,230.18,0.02869024]
[1737997492106,0.02895905,230.22,230.05,0.1569]
[1737997492310,0.02895905,230.22,230.04,17.37729363]
[1737997492604,17.37729363,230.24,230.0,17.37729363]
[1737997492794,17.37729363,230.2,230.0,17.37729363]
[1737997493000,1.3296,230.19,230.0,17.37729363]
[1737997493198,4.3473,230.11,230.0,17.37729363]
[1737997493399,0.0317433,230.12,230.07,0.0306973]
[1737997493803,17.37729363,230.32,230.08,20.97729363]
[1737997494008,17.37729363,230.32,230.09,17.37729363]
[1737997494509,17.37729363,230.28,230.11,4.3471]
[1737997494711,17.37729363,230.24,230.05,17.37729363]
[1737997494912,4.3459,230.19,230.17,0.03318322]
[1737997495108,4.3459,230.19,230.05,17.37729363]
[1737997495309,4.3459,230.19,230.11,4.3472]
[1737997495608,0.03150608,230.14,230.11,4.3472]
[1737997496310,0.03150608,230.14,230.13,4.3469]
[1737997499202,0.03150608,230.14,230.13,21.72419363]
[1737997500011,1.4411,230.3,230.13,17.37729363]
[1737997500304,1.3691,230.29,230.09,17.37729363]
[1737997500911,1.3691,230.29,230.14,17.37729363]
[1737997501107,0.02769527,230.21,230.18,17.37729363]
[1737997501304,4.3443,230.27,230.22,4.3452]
[1737997501507,1.3691,230.29,230.17,0.02826029]
[1737997501805,4.3449,230.24,230.14,4.3467]
[1737997502008,1.3691,230.29,230.1,17.37729363]
[1737997502513,0.03258309,230.22,230.17,0.0333404]
[1737997504406,0.03258309,230.22,230.04,17.37729363]
[1737997504812,17.37729363,230.28,230.04,17.37729363]
[1737997505015,4.3458,230.19,230.04,17.37729363]
[1737997505215,17.37729363,230.28,230.04,17.37729363]
[1737997505618,0.02978274,230.18,230.14,0.02866291]
[1737997505816,17.37729363,230.28,230.04,17.37729363]
[1737997506021,0.02872672,230.18,230.14,0.03023719]
[1737997506315,17.37729363,230.28,230.04,17.37729363]
[1737997506514,0.02765102,230.18,230.14,0.02804484]
[1737997506712,1.3691,230.29,230.04,17.37729363]
[1737997506919,1.3691,230.29,230.11,17.37729363]